[Event "7th Paul Keres Memorial Festival 2026 Classic A"]
[Site "ESTONIA Resort Hotel & Spa conference center, EE"]
[Date "2026.07.29"]
[Round "4"]
[White "Keinanen, Anastasia"]
[Black "Du, Yuxin"]
[Result "1/2-1/2"]
[Board "10"]
[TimeControl "5400+30"]
[WhiteFideId "34101737"]
[BlackFideId "8610282"]
[WhiteElo "2259"]
[BlackElo "2019"]
[WhiteTitle "WIM"]
[WhiteClock "0:04:32"]
[BlackClock "0:07:35"]
[Variant "Standard"]
[EndDate "2026.07.29"]
[EndTime "11:28:38"]

1. e4 {[%clk 1:29:11]}  c6 {[%clk 1:30:15]} 2. d4 {[%clk 1:29:09]}  d5 {[%clk 1:30:39]} 3. exd5 {[%clk 1:29:25]}  cxd5 {[%clk 1:31:05]}
4. Nf3 {[%clk 1:29:47]}  Nc6 {[%clk 1:31:16]} 5. c3 {[%clk 1:30:11]}  Qc7 {[%clk 1:29:41]} 6. g3 {[%clk 1:30:32]}  e6 {[%clk 1:29:03]}
7. Bf4 {[%clk 1:25:28]}  Bd6 {[%clk 1:29:25]} 8. Bxd6 {[%clk 1:25:50]}  Qxd6 {[%clk 1:29:49]} 9. Nbd2 {[%clk 1:15:45]}  Nge7 {[%clk 1:28:12]}
10. Bg2 {[%clk 1:13:09]}  O-O {[%clk 1:27:47]} 11. O-O {[%clk 1:13:29]}  f6 {[%clk 1:15:42]} 12. Re1 {[%clk 1:09:46]}  Bd7 {[%clk 1:10:26]}
13. Rc1 {[%clk 0:55:29]}  Rae8 {[%clk 1:08:19]} 14. b4 {[%clk 0:44:53]}  b6 {[%clk 0:55:59]} 15. a3 {[%clk 0:43:15]}  Qb8 {[%clk 0:51:10]}
16. Bh3 {[%clk 0:38:31]}  Nd8 {[%clk 0:41:54]} 17. Qb3 {[%clk 0:26:45]}  Kh8 {[%clk 0:38:02]} 18. b5 {[%clk 0:25:13]}  Nc8 {[%clk 0:24:47]}
19. c4 {[%clk 0:20:22]}  dxc4 {[%clk 0:24:59]} 20. Nxc4 {[%clk 0:20:49]}  Nd6 {[%clk 0:24:55]} 21. a4 {[%clk 0:21:09]}  N8b7 {[%clk 0:24:11]}
22. Nb2 {[%clk 0:15:45]}  Nf5 {[%clk 0:12:53]} 23. Nd3 {[%clk 0:12:03]}  Qd6 {[%clk 0:09:48]} 24. Qb4 {[%clk 0:10:56]}  Rc8 {[%clk 0:07:18]}
25. Bxf5 {[%clk 0:10:25]}  exf5 {[%clk 0:07:17]} 26. Qxd6 {[%clk 0:09:19]}  Nxd6 {[%clk 0:07:41]} 27. d5 {[%clk 0:09:35]}  Ne4 {[%clk 0:03:33]}
28. Nd4 {[%clk 0:09:32]}  Nc3 {[%clk 0:02:15]} 29. Nb4 {[%clk 0:04:42]}  Nxa4 {[%clk 0:01:06]} 30. Nbc6 {[%clk 0:04:57]}  Rfe8 {[%clk 0:00:44]}
31. Rxe8+ {[%clk 0:03:54]}  Rxe8 {[%clk 0:00:35]} 32. Ra1 {[%clk 0:03:36]}  Nc5 {[%clk 0:00:34]} 33. Rxa7 {[%clk 0:04:02]}  f4 {[%clk 0:00:36]}
34. Kg2 {[%clk 0:03:34]}  fxg3 {[%clk 0:01:00]} 35. hxg3 {[%clk 0:04:03]}  h5 {[%clk 0:00:50]} 36. d6 {[%clk 0:03:16]}  Kg8 {[%clk 0:00:35]}
37. Ne7+ {[%clk 0:03:22]}  Kf8 {[%clk 0:00:37]} 38. Nd5 {[%clk 0:03:07]}  Rb8 {[%clk 0:00:40]} 39. Nc6 {[%clk 0:03:00]}  Rc8 {[%clk 0:00:48]}
40. Nde7 {[%clk 0:01:58]}  Re8 {[%clk 0:01:03]} 41. Rc7 {[%clk 0:02:07]}  Kf7 {[%clk 0:00:54]} 42. Nd5 {[%clk 0:02:17]}  Ke6 {[%clk 0:01:03]}
43. Nxb6 {[%clk 0:01:37]}  Kxd6 {[%clk 0:01:29]} 44. Nxd7 {[%clk 0:01:36]}  Nxd7 {[%clk 0:01:10]} 45. Rb7 {[%clk 0:01:27]}  Re4 {[%clk 0:00:55]}
46. Na7 {[%clk 0:01:07]}  Rc4 {[%clk 0:00:51]} 47. Nc6 {[%clk 0:00:50]}  g5 {[%clk 0:00:57]} 48. Nb8 {[%clk 0:00:39]}  Nxb8 {[%clk 0:01:10]}
49. Rxb8 {[%clk 0:01:06]}  h4 {[%clk 0:00:52]} 50. b6 {[%clk 0:01:10]}  Rb4 {[%clk 0:00:40]} 51. b7 {[%clk 0:00:53]}  hxg3 {[%clk 0:00:52]}
52. Kxg3 {[%clk 0:00:58]}  Kc7 {[%clk 0:00:38]} 53. Rf8 {[%clk 0:01:22]}  Kxb7 {[%clk 0:00:52]} 54. Rxf6 {[%clk 0:01:45]}  Kc7 {[%clk 0:01:03]}
55. Rg6 {[%clk 0:02:02]}  Rb5 {[%clk 0:01:17]} 56. Kg4 {[%clk 0:02:11]}  Rb2 {[%clk 0:01:06]} 57. Rf6 {[%clk 0:01:35]}  Kd7 {[%clk 0:00:57]}
58. Kxg5 {[%clk 0:01:53]}  Ke7 {[%clk 0:01:23]} 59. Rf3 {[%clk 0:02:00]}  Rb6 {[%clk 0:01:37]} 60. Rf5 {[%clk 0:01:55]}  Ra6 {[%clk 0:01:49]}
61. f4 {[%clk 0:02:13]}  Rb6 {[%clk 0:02:02]} 62. Ra5 {[%clk 0:01:57]}  Kf7 {[%clk 0:02:25]} 63. Ra7+ {[%clk 0:02:20]}  Kf8 {[%clk 0:02:42]}
64. Rh7 {[%clk 0:02:25]}  Kg8 {[%clk 0:03:00]} 65. Rc7 {[%clk 0:02:29]}  Ra6 {[%clk 0:03:16]} 66. Kf5 {[%clk 0:02:48]}  Kf8 {[%clk 0:03:30]}
67. Rh7 {[%clk 0:03:02]}  Rb6 {[%clk 0:03:42]} 68. Rd7 {[%clk 0:03:03]}  Ra6 {[%clk 0:03:58]} 69. Ke5 {[%clk 0:03:21]}  Rb6 {[%clk 0:04:04]}
70. Ra7 {[%clk 0:02:39]}  Ke8 {[%clk 0:04:21]} 71. Kf5 {[%clk 0:02:31]}  Kf8 {[%clk 0:04:44]} 72. Kg5 {[%clk 0:02:58]}  Kg8 {[%clk 0:05:08]}
73. Rc7 {[%clk 0:02:55]}  Ra6 {[%clk 0:05:34]} 74. f5 {[%clk 0:03:22]}  Kf8 {[%clk 0:05:42]} 75. Rh7 {[%clk 0:03:45]}  Rb6 {[%clk 0:05:59]}
76. Ra7 {[%clk 0:03:59]}  Rc6 {[%clk 0:06:21]} 77. Kf4 {[%clk 0:04:26]}  Rb6 {[%clk 0:06:45]} 78. Ke5 {[%clk 0:04:50]}  Rc6 {[%clk 0:06:51]}
79. Kd5 {[%clk 0:04:03]}  Rb6 {[%clk 0:07:13]} 80. Rd7 {[%clk 0:04:18]}  Ra6 {[%clk 0:07:35]} 81. Rd6 {[%clk 0:04:32]}  Rb6 {[%clk 0:07:24]}
82. Rc6 {[%clk 0:10:25]}  Rxc6 {[%clk 0:07:54]} 1/2-1/2

[Event "7th Paul Keres Memorial Festival 2026 Classic A"]
[Site "ESTONIA Resort Hotel & Spa conference center, EE"]
[Date "2026.07.29"]
[Round "5"]
[White "Kazakouski, Valery"]
[Black "Laurusas, Tomas"]
[Result "1/2-1/2"]
[Board "1"]
[TimeControl "5400+30"]
[WhiteFideId "13507443"]
[BlackFideId "12803731"]
[WhiteElo "2594"]
[BlackElo "2511"]
[WhiteTitle "GM"]
[BlackTitle "GM"]
[WhiteClock "0:20:46"]
[BlackClock "0:00:36"]
[Variant "Standard"]
[EndDate "2026.07.29"]
[EndTime "17:05:32"]

1. e4 {[%clk 1:30:41]}  e5 {[%clk 1:32:07]} 2. Nf3 {[%clk 1:30:41]}  Nf6 {[%clk 1:32:07]} 3. Nxe5 {[%clk 1:30:41]}  d6 {[%clk 1:32:07]}
4. Nd3 {[%clk 1:30:41]}  Nxe4 {[%clk 1:32:07]} 5. Qe2 {[%clk 1:30:41]}  Qe7 {[%clk 1:32:07]} 6. Nf4 {[%clk 1:30:41]}  Nf6 {[%clk 1:32:07]}
7. d4 {[%clk 1:30:41]}  Qxe2+ {[%clk 1:32:07]} 8. Bxe2 {[%clk 1:30:41]}  d5 {[%clk 1:32:07]} 9. Nc3 {[%clk 1:30:41]}  c6 {[%clk 1:32:07]}
10. Bd3 {[%clk 1:30:41]}  Bd6 {[%clk 1:32:07]} 11. f3 {[%clk 1:30:41]}  h5 {[%clk 1:32:07]} 12. Bd2 {[%clk 1:30:41]}  b6 {[%clk 1:32:07]}
13. Kf2 {[%clk 1:30:41]}  Ba6 {[%clk 1:32:07]} 14. Rae1+ {[%clk 1:30:41]}  Kd8 {[%clk 1:32:07]} 15. Nce2 {[%clk 1:30:41]}  Kc7 {[%clk 1:32:07]}
16. Bxa6 {[%clk 1:30:41]}  Nxa6 {[%clk 1:32:07]} 17. Nd3 {[%clk 1:30:41]}  Nd7 {[%clk 1:32:07]} 18. Nef4 {[%clk 1:30:41]}  g5 {[%clk 1:32:07]}
19. Ne2 {[%clk 1:30:41]}  f6 {[%clk 1:32:07]} 20. h4 {[%clk 1:30:41]}  Rag8 {[%clk 0:44:54]} 21. hxg5 {[%clk 1:19:40]}  fxg5 {[%clk 0:45:21]}
22. Ng3 {[%clk 1:19:44]}  Bxg3+ {[%clk 0:44:58]} 23. Kxg3 {[%clk 1:20:07]}  c5 {[%clk 0:45:22]} 24. c3 {[%clk 1:15:57]}  Nab8 {[%clk 0:42:48]}
25. Ne5 {[%clk 1:15:07]}  Rh7 {[%clk 0:39:08]} 26. Kf2 {[%clk 1:11:45]}  Nf6 {[%clk 0:35:48]} 27. dxc5 {[%clk 1:11:11]}  bxc5 {[%clk 0:36:13]}
28. b4 {[%clk 1:09:50]}  Nbd7 {[%clk 0:32:50]} 29. Nxd7 {[%clk 1:05:48]}  Nxd7 {[%clk 0:32:57]} 30. g4 {[%clk 1:05:52]}  h4 {[%clk 0:27:40]}
31. Re6 {[%clk 1:05:08]}  Rf7 {[%clk 0:27:35]} 32. Kg2 {[%clk 1:05:23]}  Rgf8 {[%clk 0:21:00]} 33. Rh3 {[%clk 1:03:53]}  Rg8 {[%clk 0:20:37]}
34. Be3 {[%clk 0:53:39]}  d4 {[%clk 0:15:36]} 35. Bd2 {[%clk 0:53:53]}  dxc3 {[%clk 0:10:44]} 36. Bxc3 {[%clk 0:54:14]}  cxb4 {[%clk 0:09:23]}
37. Bxb4 {[%clk 0:54:33]}  Nb6 {[%clk 0:09:20]} 38. Re5 {[%clk 0:53:46]}  Rd7 {[%clk 0:08:36]} 39. Rh1 {[%clk 0:53:35]}  Rd4 {[%clk 0:06:31]}
40. Rc1+ {[%clk 0:51:03]}  Kd7 {[%clk 0:06:39]} 41. Re7+ {[%clk 0:47:19]}  Kd8 {[%clk 0:07:09]} 42. Rb7 {[%clk 0:46:40]}  Re8 {[%clk 0:04:25]}
43. Kf2 {[%clk 0:45:30]}  Re6 {[%clk 0:03:26]} 44. a3 {[%clk 0:45:19]}  Rd3 {[%clk 0:03:10]} 45. Rxa7 {[%clk 0:44:13]}  Ree3 {[%clk 0:01:28]}
46. Rf7 {[%clk 0:43:48]}  Nd7 {[%clk 0:01:56]} 47. Bd2 {[%clk 0:32:33]}  Re5 {[%clk 0:02:23]} 48. Rc2 {[%clk 0:32:32]}  Ke8 {[%clk 0:02:34]}
49. Rg7 {[%clk 0:32:30]}  Kf8 {[%clk 0:03:03]} 50. Rxg5 {[%clk 0:31:30]}  Rxg5 {[%clk 0:03:32]} 51. Bxg5 {[%clk 0:31:52]}  Ne5 {[%clk 0:01:53]}
52. Be3 {[%clk 0:32:15]}  Kf7 {[%clk 0:00:46]} 53. Ra2 {[%clk 0:31:05]}  h3 {[%clk 0:00:41]} 54. Ra1 {[%clk 0:22:03]}  h2 {[%clk 0:01:09]}
55. a4 {[%clk 0:20:11]}  Ra3 {[%clk 0:01:06]} 56. Rh1 {[%clk 0:20:36]}  Rxa4 {[%clk 0:00:51]} 57. Kg3 {[%clk 0:19:16]}  Ra3 {[%clk 0:01:21]}
58. Kf4 {[%clk 0:19:38]}  Ng6+ {[%clk 0:01:15]} 59. Ke4 {[%clk 0:20:06]}  Ra4+ {[%clk 0:00:22]} 60. Bd4 {[%clk 0:20:35]}  Nh4 {[%clk 0:00:54]}
61. f4 {[%clk 0:20:35]}  Ra2 {[%clk 0:00:54]} 62. f5 {[%clk 0:20:35]}  Ra4 {[%clk 0:00:05]} 63. Ke3 {[%clk 0:20:46]}  Ng2+ {[%clk 0:00:36]}
64. Kf3 {[%clk 0:20:46]}  Rxd4 {[%clk 0:00:36]} 65. Kxg2 {[%clk 0:20:46]}  Ra4 {[%clk 0:01:12]} 1/2-1/2

[Event "7th Paul Keres Memorial Festival 2026 Classic A"]
[Site "ESTONIA Resort Hotel & Spa conference center, EE"]
[Date "2026.07.29"]
[Round "5"]
[White "Ostensen, Nicolai Maxime"]
[Black "Zeng, Chongsheng"]
[Result "0-1"]
[Board "2"]
[TimeControl "5400+30"]
[WhiteFideId "1546970"]
[BlackFideId "8603847"]
[WhiteElo "2407"]
[BlackElo "2565"]
[WhiteTitle "FM"]
[BlackTitle "GM"]
[WhiteClock "0:02:45"]
[BlackClock "0:01:52"]
[Variant "Standard"]
[EndDate "2026.07.29"]
[EndTime "17:23:09"]

1. e4 {[%clk 1:30:30]}  c6 {[%clk 1:26:40]} 2. d4 {[%clk 1:31:21]}  d5 {[%clk 1:27:05]} 3. exd5 {[%clk 1:31:42]}  cxd5 {[%clk 1:27:27]}
4. Bd3 {[%clk 1:32:08]}  Nc6 {[%clk 1:27:39]} 5. c3 {[%clk 1:32:33]}  Qc7 {[%clk 1:27:54]} 6. h3 {[%clk 1:32:45]}  e6 {[%clk 1:28:15]}
7. Nf3 {[%clk 1:33:05]}  Bd6 {[%clk 1:28:31]} 8. O-O {[%clk 1:33:17]}  Nge7 {[%clk 1:28:56]} 9. Re1 {[%clk 1:32:50]}  Bd7 {[%clk 1:25:38]}
10. b3 {[%clk 1:29:57]}  O-O {[%clk 1:09:02]} 11. Na3 {[%clk 1:28:59]}  a6 {[%clk 1:08:27]} 12. Nc2 {[%clk 1:28:34]}  Ng6 {[%clk 1:06:45]}
13. Bb2 {[%clk 1:24:52]}  Nce7 {[%clk 1:02:33]} 14. Ne3 {[%clk 1:23:38]}  b5 {[%clk 0:59:42]} 15. Rc1 {[%clk 1:21:14]}  Rad8 {[%clk 0:57:12]}
16. Ng4 {[%clk 1:16:10]}  f6 {[%clk 0:54:19]} 17. c4 {[%clk 1:14:22]}  Qb7 {[%clk 0:48:03]} 18. Qc2 {[%clk 0:55:56]}  bxc4 {[%clk 0:43:00]}
19. bxc4 {[%clk 0:56:18]}  dxc4 {[%clk 0:43:23]} 20. Bxc4 {[%clk 0:53:14]}  Nf4 {[%clk 0:43:43]} 21. Qb3 {[%clk 0:52:11]}  Qa8 {[%clk 0:41:30]}
22. Ba3 {[%clk 0:43:13]}  Rb8 {[%clk 0:40:14]} 23. Qc3 {[%clk 0:40:37]}  Ned5 {[%clk 0:36:13]} 24. Qa5 {[%clk 0:40:27]}  Bxa3 {[%clk 0:32:12]}
25. Qxa3 {[%clk 0:40:31]}  Bb5 {[%clk 0:32:16]} 26. Bxd5 {[%clk 0:34:04]}  Qxd5 {[%clk 0:26:26]} 27. Rc7 {[%clk 0:30:13]}  Rbe8 {[%clk 0:23:59]}
28. Kh2 {[%clk 0:20:52]}  Qd8 {[%clk 0:22:24]} 29. Rec1 {[%clk 0:19:45]}  h5 {[%clk 0:15:38]} 30. Ne3 {[%clk 0:16:59]}  Ne2 {[%clk 0:15:54]}
31. R1c5 {[%clk 0:12:24]}  Nxd4 {[%clk 0:15:48]} 32. Nxd4 {[%clk 0:11:21]}  Qxd4 {[%clk 0:16:01]} 33. Rb7 {[%clk 0:08:53]}  Qd6+ {[%clk 0:11:52]}
34. Kg1 {[%clk 0:08:29]}  Rf7 {[%clk 0:10:49]} 35. Rxf7 {[%clk 0:08:44]}  Kxf7 {[%clk 0:11:17]} 36. Qc3 {[%clk 0:08:50]}  h4 {[%clk 0:11:06]}
37. Qc2 {[%clk 0:04:41]}  Rd8 {[%clk 0:06:49]} 38. Rc7+ {[%clk 0:04:41]}  Rd7 {[%clk 0:07:13]} 39. Rc8 {[%clk 0:05:05]}  Bd3 {[%clk 0:06:22]}
40. Qa4 {[%clk 0:04:45]}  g5 {[%clk 0:05:10]} 41. Rc6 {[%clk 0:03:47]}  Qd4 {[%clk 0:04:17]} 42. Qd1 {[%clk 0:03:01]}  Rb7 {[%clk 0:03:32]}
43. Rc1 {[%clk 0:02:03]}  Qb2 {[%clk 0:03:16]} 44. a4 {[%clk 0:01:08]}  Qxc1 {[%clk 0:03:11]} 45. Qxc1 {[%clk 0:01:33]}  Rb1 {[%clk 0:03:40]}
46. Qxb1 {[%clk 0:01:52]}  Bxb1 {[%clk 0:04:09]} 47. Kf1 {[%clk 0:01:30]}  Ke7 {[%clk 0:02:30]} 48. Ke2 {[%clk 0:01:59]}  Kd6 {[%clk 0:02:53]}
49. Kd2 {[%clk 0:02:26]}  f5 {[%clk 0:01:58]} 50. Kc3 {[%clk 0:02:35]}  Kc5 {[%clk 0:01:53]} 51. f3 {[%clk 0:02:37]}  Ba2 {[%clk 0:01:48]}
52. Nc2 {[%clk 0:02:39]}  a5 {[%clk 0:01:11]} 53. f4 {[%clk 0:02:00]}  gxf4 {[%clk 0:01:13]} 54. Ne1 {[%clk 0:02:23]}  Bd5 {[%clk 0:01:01]}
55. Nd3+ {[%clk 0:02:26]}  Kd6 {[%clk 0:01:29]} 56. Nxf4 {[%clk 0:02:45]}  e5 {[%clk 0:01:52]} 0-1

[Event "7th Paul Keres Memorial Festival 2026 Classic A"]
[Site "ESTONIA Resort Hotel & Spa conference center, EE"]
[Date "2026.07.29"]
[Round "5"]
[White "Harikrishnan.A.Ra"]
[Black "Keinanen, Toivo"]
[Result "1/2-1/2"]
[Board "3"]
[TimeControl "5400+30"]
[WhiteFideId "5081483"]
[BlackFideId "509825"]
[WhiteElo "2519"]
[BlackElo "2495"]
[WhiteTitle "GM"]
[BlackTitle "IM"]
[WhiteClock "0:54:28"]
[BlackClock "0:58:14"]
[Variant "Standard"]
[EndDate "2026.07.29"]
[EndTime "14:38:13"]

1. Nf3 {[%clk 1:31:19]}  d5 {[%clk 1:30:30]} 2. g3 {[%clk 1:31:19]}  Nf6 {[%clk 1:30:30]} 3. Bg2 {[%clk 1:31:19]}  Nbd7 {[%clk 1:28:31]}
4. c4 {[%clk 1:27:00]}  c6 {[%clk 1:22:00]} 5. d4 {[%clk 1:25:12]}  dxc4 {[%clk 1:17:59]} 6. O-O {[%clk 1:18:42]}  e6 {[%clk 1:17:45]}
7. a4 {[%clk 1:18:45]}  b6 {[%clk 1:17:21]} 8. Na3 {[%clk 1:14:42]}  Bxa3 {[%clk 1:15:42]} 9. Rxa3 {[%clk 1:12:10]}  Ba6 {[%clk 1:11:41]}
10. Qc2 {[%clk 1:07:50]}  O-O {[%clk 1:09:35]} 11. Nd2 {[%clk 0:56:58]}  c3 {[%clk 0:59:40]} 12. bxc3 {[%clk 0:55:35]}  Bxe2 {[%clk 0:59:56]}
13. Re1 {[%clk 0:56:00]}  Ba6 {[%clk 0:59:05]} 14. Bxc6 {[%clk 0:55:46]}  Rc8 {[%clk 0:58:14]} 15. Bg2 {[%clk 0:54:28]} 1/2-1/2

[Event "7th Paul Keres Memorial Festival 2026 Classic A"]
[Site "ESTONIA Resort Hotel & Spa conference center, EE"]
[Date "2026.07.29"]
[Round "5"]
[White "Haitin, Ilja"]
[Black "Lagarde, Maxime"]
[Result "1-0"]
[Board "4"]
[TimeControl "5400+30"]
[WhiteFideId "4501764"]
[BlackFideId "662399"]
[WhiteElo "2273"]
[BlackElo "2622"]
[WhiteTitle "FM"]
[BlackTitle "GM"]
[WhiteClock "0:01:02"]
[BlackClock "0:42:10"]
[Variant "Standard"]
[EndDate "2026.07.29"]
[EndTime "16:26:25"]

1. e4 {[%clk 1:30:30]}  c5 {[%clk 1:30:30]} 2. Nf3 {[%clk 1:30:30]}  e6 {[%clk 1:30:30]} 3. d4 {[%clk 1:30:30]}  cxd4 {[%clk 1:30:30]}
4. Nxd4 {[%clk 1:30:56]}  Nf6 {[%clk 1:32:01]} 5. Nc3 {[%clk 1:31:19]}  Nc6 {[%clk 1:32:28]} 6. Be2 {[%clk 1:31:36]}  d6 {[%clk 1:32:53]}
7. Be3 {[%clk 1:31:56]}  Be7 {[%clk 1:33:18]} 8. Qd2 {[%clk 1:32:11]}  O-O {[%clk 1:32:06]} 9. O-O-O {[%clk 1:32:24]}  Nxd4 {[%clk 1:32:07]}
10. Bxd4 {[%clk 1:32:46]}  e5 {[%clk 1:30:33]} 11. Be3 {[%clk 1:32:53]}  Be6 {[%clk 1:30:57]} 12. Bg5 {[%clk 1:31:27]}  Rc8 {[%clk 1:11:18]}
13. Kb1 {[%clk 1:25:09]}  Rxc3 {[%clk 1:10:15]} 14. Bxf6 {[%clk 1:16:20]}  Rc6 {[%clk 1:10:28]} 15. Bxe7 {[%clk 1:15:30]}  Qxe7 {[%clk 1:10:53]}
16. Bb5 {[%clk 1:04:58]}  Rc5 {[%clk 1:07:29]} 17. Ba4 {[%clk 1:03:51]}  Rc4 {[%clk 1:05:39]} 18. Bb3 {[%clk 0:59:37]}  Rxe4 {[%clk 1:05:12]}
19. Qxd6 {[%clk 0:58:18]}  Qxd6 {[%clk 1:05:27]} 20. Rxd6 {[%clk 0:58:45]}  Bxb3 {[%clk 0:59:56]} 21. axb3 {[%clk 0:58:26]}  Re2 {[%clk 1:00:21]}
22. Rf1 {[%clk 0:57:31]}  Rc8 {[%clk 1:00:17]} 23. c3 {[%clk 0:55:36]}  f5 {[%clk 0:56:43]} 24. Kc1 {[%clk 0:51:34]}  Kf7 {[%clk 0:50:04]}
25. Rd2 {[%clk 0:49:57]}  Rxd2 {[%clk 0:50:26]} 26. Kxd2 {[%clk 0:50:25]}  Ke6 {[%clk 0:50:05]} 27. Ra1 {[%clk 0:41:53]}  a6 {[%clk 0:50:32]}
28. Ra4 {[%clk 0:38:17]}  g5 {[%clk 0:49:13]} 29. Ke2 {[%clk 0:29:19]}  h5 {[%clk 0:40:26]} 30. h4 {[%clk 0:09:33]}  g4 {[%clk 0:40:43]}
31. f4 {[%clk 0:04:04]}  gxf3+ {[%clk 0:38:21]} 32. gxf3 {[%clk 0:04:19]}  Rc6 {[%clk 0:37:46]} 33. Ra1 {[%clk 0:03:22]}  Rb6 {[%clk 0:37:42]}
34. b4 {[%clk 0:03:17]}  Kd5 {[%clk 0:37:19]} 35. Rg1 {[%clk 0:02:28]}  a5 {[%clk 0:36:57]} 36. Rg5 {[%clk 0:02:07]}  f4 {[%clk 0:37:08]}
37. Kd3 {[%clk 0:00:54]}  Rd6 {[%clk 0:36:46]} 38. bxa5 {[%clk 0:00:40]}  Kc6+ {[%clk 0:36:37]} 39. Ke4 {[%clk 0:00:54]}  Rd2 {[%clk 0:37:06]}
40. Kxe5 {[%clk 0:01:04]}  Rxb2 {[%clk 0:37:32]} 41. Kxf4 {[%clk 0:01:18]}  Rc2 {[%clk 0:37:51]} 42. Rxh5 {[%clk 0:01:12]}  Rxc3 {[%clk 0:38:20]}
43. Rf5 {[%clk 0:01:15]}  Kd6 {[%clk 0:38:35]} 44. h5 {[%clk 0:01:24]}  Rc1 {[%clk 0:38:54]} 45. Kg5 {[%clk 0:01:17]}  Ke6 {[%clk 0:39:19]}
46. Rb5 {[%clk 0:01:12]}  Rg1+ {[%clk 0:39:35]} 47. Kf4 {[%clk 0:01:16]}  Rg7 {[%clk 0:39:57]} 48. Rb6+ {[%clk 0:00:46]}  Kd5 {[%clk 0:40:25]}
49. h6 {[%clk 0:01:00]}  Rf7+ {[%clk 0:40:53]} 50. Kg5 {[%clk 0:00:41]}  Rxf3 {[%clk 0:41:21]} 51. h7 {[%clk 0:00:42]}  Rg3 {[%clk 0:41:49]}
52. Kh4 {[%clk 0:00:46]}  Rg1 {[%clk 0:42:10]} 53. Rh6 {[%clk 0:01:02]} 1-0

[Event "7th Paul Keres Memorial Festival 2026 Classic A"]
[Site "ESTONIA Resort Hotel & Spa conference center, EE"]
[Date "2026.07.29"]
[Round "5"]
[White "Juknis, Paulius"]
[Black "Fecker, Noah"]
[Result "1/2-1/2"]
[Board "5"]
[TimeControl "5400+30"]
[WhiteFideId "12802247"]
[BlackFideId "1334263"]
[WhiteElo "2157"]
[BlackElo "2371"]
[WhiteTitle "CM"]
[BlackTitle "FM"]
[WhiteClock "1:30:36"]
[BlackClock "1:30:28"]
[Variant "Standard"]
[EndDate "2026.07.29"]
[EndTime "15:23:08"]

1. d4 {[%clk 1:30:36]}  d5 {[%clk 1:30:28]} 2. Bf4 {[%clk 1:30:36]}  Bf5 {[%clk 1:30:28]} 3. c4 {[%clk 1:30:36]}  e6 {[%clk 1:30:28]}
4. Nc3 {[%clk 1:30:36]}  Nf6 {[%clk 1:30:28]} 5. e3 {[%clk 1:30:36]}  Bb4 {[%clk 1:30:28]} 6. Nf3 {[%clk 1:30:36]}  O-O {[%clk 1:30:28]}
7. Be2 {[%clk 1:30:36]}  c5 {[%clk 1:30:28]} 8. O-O {[%clk 1:30:36]}  Nc6 {[%clk 1:30:28]} 9. cxd5 {[%clk 1:30:36]}  exd5 {[%clk 1:30:28]}
10. dxc5 {[%clk 1:30:36]}  Bxc3 {[%clk 1:30:28]} 11. bxc3 {[%clk 1:30:36]}  Ne4 {[%clk 1:30:28]} 12. c4 {[%clk 1:30:36]}  Nc3 {[%clk 1:30:28]}
13. Qd2 {[%clk 1:30:36]}  Nxe2+ {[%clk 1:30:28]} 14. Qxe2 {[%clk 1:30:36]}  dxc4 {[%clk 1:30:28]} 15. Rfd1 {[%clk 1:30:36]}  Bd3 {[%clk 1:30:28]}
16. Qb2 {[%clk 1:30:36]}  b6 {[%clk 1:30:28]} 17. Ne1 {[%clk 1:30:36]}  bxc5 {[%clk 1:30:28]} 1/2-1/2

[Event "7th Paul Keres Memorial Festival 2026 Classic A"]
[Site "ESTONIA Resort Hotel & Spa conference center, EE"]
[Date "2026.07.29"]
[Round "5"]
[White "Maltsevskaya, Aleksandra"]
[Black "Kreken, Eivind Grunt"]
[Result "1-0"]
[Board "6"]
[TimeControl "5400+30"]
[WhiteFideId "24174041"]
[BlackFideId "1532359"]
[WhiteElo "2360"]
[BlackElo "2335"]
[WhiteTitle "IM"]
[BlackTitle "FM"]
[WhiteClock "0:03:46"]
[BlackClock "0:01:49"]
[Variant "Standard"]
[EndDate "2026.07.29"]
[EndTime "16:55:55"]

1. e4 {[%clk 1:30:30]}  e5 {[%clk 1:30:30]} 2. Nf3 {[%clk 1:30:30]}  Nc6 {[%clk 1:30:30]} 3. d4 {[%clk 1:30:30]}  exd4 {[%clk 1:30:29]}
4. Bc4 {[%clk 1:31:57]}  Nf6 {[%clk 1:29:50]} 5. e5 {[%clk 1:32:18]}  d5 {[%clk 1:30:09]} 6. Bb5 {[%clk 1:32:41]}  Nd7 {[%clk 1:30:20]}
7. O-O {[%clk 1:28:45]}  Be7 {[%clk 1:30:32]} 8. Bxc6 {[%clk 1:28:06]}  bxc6 {[%clk 1:30:56]} 9. Nxd4 {[%clk 1:28:31]}  Nb8 {[%clk 1:30:51]}
10. Nc3 {[%clk 1:22:24]}  O-O {[%clk 1:30:41]} 11. Nb3 {[%clk 1:22:09]}  f6 {[%clk 1:21:47]} 12. exf6 {[%clk 1:14:13]}  Bxf6 {[%clk 1:21:34]}
13. Be3 {[%clk 1:14:33]}  Bxc3 {[%clk 0:59:40]} 14. bxc3 {[%clk 1:14:53]}  Nd7 {[%clk 0:55:47]} 15. Qd4 {[%clk 1:13:20]}  Qf6 {[%clk 0:53:22]}
16. f3 {[%clk 1:11:52]}  Ne5 {[%clk 0:50:42]} 17. Bf2 {[%clk 1:08:10]}  Nc4 {[%clk 0:47:06]} 18. Bg3 {[%clk 1:04:41]}  Bf5 {[%clk 0:44:41]}
19. Rf2 {[%clk 0:59:44]}  Rae8 {[%clk 0:36:52]} 20. Bxc7 {[%clk 0:56:45]}  Re3 {[%clk 0:35:58]} 21. Qxf6 {[%clk 0:42:02]}  Rxf6 {[%clk 0:33:44]}
22. Bb8 {[%clk 0:42:22]}  Re7 {[%clk 0:22:19]} 23. Bg3 {[%clk 0:35:31]}  Re3 {[%clk 0:21:21]} 24. Bb8 {[%clk 0:31:04]}  Re7 {[%clk 0:21:44]}
25. Nd4 {[%clk 0:30:01]}  Bg6 {[%clk 0:19:40]} 26. Bg3 {[%clk 0:22:41]}  c5 {[%clk 0:17:39]} 27. Nb3 {[%clk 0:21:55]}  Re3 {[%clk 0:13:13]}
28. Rd1 {[%clk 0:21:43]}  Ra6 {[%clk 0:13:20]} 29. Bf4 {[%clk 0:16:36]}  Rxc3 {[%clk 0:13:05]} 30. Rxd5 {[%clk 0:16:59]}  Rxa2 {[%clk 0:10:42]}
31. Rxc5 {[%clk 0:17:21]}  Bxc2 {[%clk 0:08:30]} 32. Nc1 {[%clk 0:15:54]}  Ra1 {[%clk 0:05:40]} 33. Rf1 {[%clk 0:07:21]}  Bg6 {[%clk 0:06:04]}
34. h4 {[%clk 0:06:04]}  h6 {[%clk 0:04:03]} 35. h5 {[%clk 0:05:40]}  Bf7 {[%clk 0:02:35]} 36. Re1 {[%clk 0:05:28]}  Raa3 {[%clk 0:01:10]}
37. Rc8+ {[%clk 0:03:51]}  Kh7 {[%clk 0:01:40]} 38. Re7 {[%clk 0:04:11]}  Bxh5 {[%clk 0:00:54]} 39. Ne2 {[%clk 0:03:39]}  Rc2 {[%clk 0:00:36]}
40. Nd4 {[%clk 0:03:26]}  Rcc3 {[%clk 0:00:34]} 41. Rcc7 {[%clk 0:02:48]}  Ra6 {[%clk 0:00:32]} 42. Rxg7+ {[%clk 0:02:49]}  Kh8 {[%clk 0:01:01]}
43. Rh7+ {[%clk 0:02:58]}  Kg8 {[%clk 0:01:26]} 44. Rcg7+ {[%clk 0:03:21]}  Kf8 {[%clk 0:01:49]} 45. Nf5 {[%clk 0:03:46]} 1-0